Cogmind - Beta 13 @@@ ROGUE MODE // 2024.04.07 @ 22:22:19 Player: Miwa Result: Destroyed by B-75 Beast with Magnetic Acceleration Cannon Performance ------------- Evolutions (4) 2000 Regions Visited (8) 1600 Robots Destroyed (35) 175 Value Destroyed (1060) 1060 Prototype IDs (5) 100 Alien Tech Used (0) 0 Bonus (300) 300 TOTAL SCORE: 5235 Bonus ------- Aligned with FarCom 300 Cogmind --------- Core Integrity 0/850 Matter 300/300 Energy 100/100 System Corruption 0% Temperature Warning (323) Movement Hovering (60) Location -6/Extension Parts ------- > --- POWER (2) -------- (None) > --- PROPULSION (5) --- Improved Hover Unit > --- UTILITY (6) ------ Enhanced Optical Array Targeting Computer Hacking Suite Hacking Suite > --- WEAPON (2) ------- Phasing Sabre > --- INVENTORY (5) ---- Improved Deuterium Engine Light Angular Momentum Engine Enhanced Optical Array Advanced Sensor Array Layered Light Armor Plating Peak State ------------ > --- POWER ------------ Improved Deuterium Engine Neutrino Core > --- PROPULSION ------- Flexi-carbon Leg Flexi-carbon Leg Flexi-carbon Leg Flexi-carbon Leg Flexi-carbon Leg > --- UTILITY ---------- Cryofiber Web Advanced Heat Sink Advanced Signal Interpreter Targeting Computer Improved Shield Generator Hacking Suite > --- WEAPON ----------- Gauss Rifle Gauss Rifle > --- INVENTORY -------- Flexi-carbon Leg Flexi-carbon Leg Improved Heat Sink Advanced Sensor Array Hacking Suite [Rating: 66] Favorites ----------- Power Ion Engine Engine Ion Engine Power Core Light Nuclear Core Propulsion Cesium-ion Thruster Treads Light Treads Leg Flexi-carbon Leg Hover Unit Improved Hover Unit Flight Unit Cesium-ion Thruster Utility Hacking Suite Device Improved Heat Sink Storage High-capacity Battery Processor Advanced Signal Interpreter Hackware Hacking Suite Protection Improved Light Armor Plating Weapon Small Laser Energy Gun Small Laser Energy Cannon YOLO Cannon Ballistic Gun Gauss Rifle Slashing Weapon Phasing Sabre Build | -11 -10 -10 -10 -9 -8 -7 -6 -6 ------- Run | Yrd Mat Min Exi Min Mat Fac Fac Ext Slots Evolved 8 | . . . . . 4 2 2 . Power 1 | . . . . . 1 . . . Propulsion 3 | . . . . . 1 1 1 . Utility 4 | . . . . . 2 1 1 . Weapon . | . . . . . . . . . Parts Attached 70 | 7 3 6 3 4 2 11 7 27 Power 11 | 1 1 1 . . 1 1 1 5 Engine 7 | 1 1 1 . . 1 1 . 2 Core 4 | . . . . . . . 1 3 Reactor . | . . . . . . . . . Propulsion 21 | 2 . 2 . 1 1 3 1 11 Treads 2 | 2 . . . . . . . . Leg 8 | . . . . . . . . 8 Wheel . | . . . . . . . . . Hover 2 | . . . . . . . . 2 Flight 9 | . . 2 . 1 1 3 1 1 Utility 22 | 2 2 2 . 1 . 5 4 6 Device 9 | . . 1 . 1 . 3 2 2 Storage 4 | 2 2 . . . . . . . Processor 4 | . . 1 . . . . 2 1 Hackware 3 | . . . . . . 1 . 2 Protection 2 | . . . . . . 1 . 1 Artifact . | . . . . . . . . . Weapon 16 | 2 . 1 3 2 . 2 1 5 Energy Gun 11 | 1 . 1 2 2 . 2 1 2 Energy Cannon 1 | . . . 1 . . . . . Ballistic Gun 3 | 1 . . . . . . . 2 Ballistic Cannon . | . . . . . . . . . Launcher . | . . . . . . . . . Special Weapon . | . . . . . . . . . Impact Weapon . | . . . . . . . . . Slashing Weapon 1 | . . . . . . . . 1 Piercing Weapon . | . . . . . . . . . Special Melee Weapon . | . . . . . . . . . Unidentified Prototypes 1 | . . . 1 . . . . . Parts Lost 27 | . 1 . . . . . . 26 Power 4 | . . . . . . . . 4 Propulsion 14 | . . . . . . . . 14 Utility 6 | . . . . . . . . 6 Weapon 3 | . 1 . . . . . . 2 Highest Loss Streak 10 | . 1 . . . . . . 10 To Critical Strikes . | . . . . . . . . . Average Slot Usage (%) 88 | . 96 85 100 100 81 86 94 79 Engine 8 | . 14 14 14 14 18 15 8 2 Core 2 | . . . . . . . 4 5 Treads 5 | . 28 . . . . . . . Leg 3 | . . . . . . . . 8 Flight 16 | . . 28 28 28 27 28 33 12 Device 12 | . . 7 14 14 9 19 22 13 Storage 4 | . 24 . . . . . . . Processor 9 | . . 7 14 14 9 7 8 13 Hackware 4 | . . . . . . . 6 8 Protection 1 | . . . . . . 5 . 1 Energy Gun 12 | . 14 28 28 28 18 7 8 4 Ballistic Gun 4 | . 14 . . . . . . 3 Naked Turns . | . . . . . . . . . Heaviest Build 38 | 12 31 8 8 8 13 31 35 38 Greatest Support 100 | 40 40 8 8 10 14 31 36 100 Greatest Overweight (x) 1 | . . . . . . . . 1 Average Overweight (x) . | . . . . . . . . . Largest Inventory Capacity 15 | 8 15 15 5 5 5 5 5 5 Average Capacity 6 | 7 12 6 5 5 5 5 5 5 Most Carried 9 | 5 9 8 5 5 4 5 5 5 Average Carried 4 | 1 6 4 3 4 3 4 4 3 Final Capacity 15 | 8 15 5 5 5 5 5 5 5 Final Carried 9 | 2 9 3 5 5 4 5 5 5 Class Distribution -------------------- 57% | Mutant 15% | Scavenger-Sprinter 12% | Sprinter 8% | Hacker-Mutant 5% | Scavenger-Mutant Dominant Class ---------------- Mutant | -10/Materials Mutant | -10/Mines Mutant | -10/Exiles Mutant | -9/Mines Scavenger-Mutant | -8/Materials Scavenger-Sprinter | -7/Factory Scavenger-Sprinter | -6/Factory Mutant | -6/Extension Resources | -11 -10 -10 -10 -9 -8 -7 -6 -6 ----------- Run | Yrd Mat Min Exi Min Mat Fac Fac Ext Matter Collected 1012 | 236 96 . . 130 20 18 79 433 Remotely . | . . . . . . . . . Salvage Created 1465 | . 308 . . . . 18 79 1060 Parts 74 | . 29 . . . . 3 8 34 Haulers Intercepted 3 | . . . . . . . . 3 Recyclers Shooed 2 | . 2 . . . . . . . Parts Field Recycled . | . . . . . . . . . Retrieved Matter . | . . . . . . . . . Parts Self-Destructed . | . . . . . . . . . Prevented . | . . . . . . . . . Kills | -11 -10 -10 -10 -9 -8 -7 -6 -6 ------- Run | Yrd Mat Min Exi Min Mat Fac Fac Ext Combat Hostiles Destroyed 25 | . 9 . . . . . 3 13 Melee 3 | . . . . . . . . 3 Guns 22 | . 9 . . . . . 3 10 Classes Destroyed 8 | . 5 . . . . 1 . 2 Builder 2 | . 1 . . . . . . 1 Hauler 3 | . . . . . . . . 3 Recycler 1 | . 1 . . . . . . . Operator 2 | . . . . . . 1 . 1 Watcher 2 | . 1 . . . . . . 1 Swarmer 9 | . 6 . . . . . 3 . Grunt 13 | . 3 . . . . . . 10 Sentry 3 | . . . . . . . . 3 Best Kill Streak 5 | . 4 . . . . 1 2 5 Combat Bots Only 5 | . 3 . . . . . 2 5 Max Kills in Single Turn 2 | . 2 . . . . 1 1 2 Gunslinging 1 | . 1 . . . . . . . Exploded . | . . . . . . . . . Melee 1 | . . . . . . . . 1 Uniques/NPCs Destroyed . | . . . . . . . . . Combat | -11 -10 -10 -10 -9 -8 -7 -6 -6 -------- Run | Yrd Mat Min Exi Min Mat Fac Fac Ext Hostile Shots Fired 498 | . 62 . . . 15 . 30 391 Missed 186 | . 12 . . . 13 . 15 146 Damage Taken 3926 | . 507 . . . 13 . 139 3267 Core 963 | . 95 . . . . . 3 865 Absorbed by Shields 312 | . . . . . . . 23 289 Core Remaining (%) 90 | 100 . . . 62 100 100 . . Volleys Fired 102 | . 36 . . . 3 1 10 52 Largest 2 | . 2 . . . 2 1 1 2 Hottest 162 | . 60 . . . 80 75 75 162 Shots Fired 185 | . 72 . . . 6 1 10 96 Gun 185 | . 72 . . . 6 1 10 96 Cannon . | . . . . . . . . . Launcher . | . . . . . . . . . Special . | . . . . . . . . . Kinetic 100 | . 36 . . . . . . 64 Thermal 76 | . 36 . . . 6 1 10 23 Explosive . | . . . . . . . . . Electromagnetic 9 | . . . . . . . . 9 Robot Hit Streak 21 | . 15 . . . 1 2 2 21 Robot Miss Streak 6 | . 6 . . . 5 . 2 4 Penetration Max 1 | . . . . . . . . 1 Secondary Targets 4 | . 2 . . . . . . 2 Max Gunslinging Chain 1 | . 1 . . . . . . 1 Shots Hit Robots 141 | . 37 . . . 1 1 5 97 Core Hits 68 | . 19 . . . . 1 3 45 Critical Kills 1 | . . . . . . . . 1 Critical Parts Destroyed 1 | . . . . . . . . 1 Critical Strikes 5 | . . . . . . . . 5 Burn 3 | . . . . . . . . 3 Destroy 2 | . . . . . . . . 2 Melee Attacks 22 | . . . . . . . . 22 Impact . | . . . . . . . . . Slashing 22 | . . . . . . . . 22 Piercing . | . . . . . . . . . Sneak Attacks 3 | . . . . . . . . 3 Combat Hostiles . | . . . . . . . . . Follow-up Attacks . | . . . . . . . . . Damage Inflicted 3287 | . 418 . . . 11 20 107 2731 Guns 2203 | . 402 . . . 11 20 107 1663 Cannons . | . . . . . . . . . Explosions . | . . . . . . . . . Melee 1008 | . . . . . . . . 1008 Ramming 76 | . 16 . . . . . . 60 Kinetic 1334 | . 157 . . . . . . 1177 Thermal 742 | . 245 . . . 11 20 107 359 Explosive . | . . . . . . . . . Electromagnetic 127 | . . . . . . . . 127 Impact . | . . . . . . . . . Slashing 1008 | . . . . . . . . 1008 Piercing . | . . . . . . . . . Highest Corruption . | . . . . . . . . . Average Corruption . | . . . . . . . . . Corruption Purged . | . . . . . . . . . Corruption Blocked . | . . . . . . . . . Overload Shots . | . . . . . . . . . Overflow Damage 149 | . . . . . . . . 149 Projectiles . | . . . . . . . . . Explosions . | . . . . . . . . . Melee 149 | . . . . . . . . 149 Knockbacks . | . . . . . . . . . Impact . | . . . . . . . . . Kinetic . | . . . . . . . . . Secondary . | . . . . . . . . . Self-Inflicted Damage . | . . . . . . . . . Shots . | . . . . . . . . . Rammed 2 | . 2 . . . . . . . Targets Rammed 61 | . 3 . . . . . . 58 Kicked 58 | . . . . . . . . 58 Crushed 1 | . 1 . . . . . . . Highest Temperature 255 | . 162 . . . . . 68 255 Average Temperature 64 | . 47 . . . . . 39 91 Received Heat Transfer 2058 | . 186 . . . . . 6 1866 Siege Activations . | . . . . . . . . . Robots Corrupted . | . . . . . . . . . Combat Hostiles . | . . . . . . . . . Parts Fried . | . . . . . . . . . Impact Corruptions . | . . . . . . . . . Robots Melted . | . . . . . . . . . Combat Hostiles . | . . . . . . . . . Parts Melted 2 | . . . . . . . . 2 Heat Transferred 1611 | . 550 . . . 25 37 185 814 Parts Sabotaged . | . . . . . . . . . Parts Stolen . | . . . . . . . . . Parts Stripped . | . . . . . . . . . Power Chain Reactions . | . . . . . . . . . Alert | -11 -10 -10 -10 -9 -8 -7 -6 -6 ------- Run | Yrd Mat Min Exi Min Mat Fac Fac Ext Peak Influence 271 | . 227 80 . . 55 50 214 271 Initial 104 | . . 35 . . . 24 24 104 Average 91 | . 83 49 . . 21 10 146 146 Maximum Alert Level 1 | . 1 . . . . . 1 1 Low Security (%) 91 | 100 94 100 . 100 100 100 91 84 Level 1 8 | . 5 . . . . . 8 15 Level 2 . | . . . . . . . . . Level 3 . | . . . . . . . . . Level 4 . | . . . . . . . . . Level 5 . | . . . . . . . . . High Security . | . . . . . . . . . Max Security . | . . . . . . . . . Squads Dispatched 7 | . 2 . . 1 1 . . 3 Investigation 3 | . . . . 1 . . . 2 Extermination . | . . . . . . . . . Reinforcement 4 | . 2 . . . 1 . . 1 Assault . | . . . . . . . . . Garrison . | . . . . . . . . . Intercept . | . . . . . . . . . Searches Triggered . | . . . . . . . . . Construction Impeded . | . . . . . . . . . Haulers Reinforced . | . . . . . . . . . Active Scanning Responses . | . . . . . . . . . Cargo Convoy Interrupts . | . . . . . . . . . Stealth | -11 -10 -10 -10 -9 -8 -7 -6 -6 --------- Run | Yrd Mat Min Exi Min Mat Fac Fac Ext Distress Signals 4 | . 1 . . . 1 . . 2 Communications Jammed . | . . . . . . . . . Distress Signals . | . . . . . . . . . Times Spotted 67 | . 15 1 . . 10 1 7 33 Peak Tracking Total 11 | . 3 2 . . 11 1 4 7 Tactical Retreats 12 | . . 1 . . . 1 3 7 Traps | -11 -10 -10 -10 -9 -8 -7 -6 -6 ------- Run | Yrd Mat Min Exi Min Mat Fac Fac Ext Traps Triggered 2 | . . . . . . . . 2 Indirectly . | . . . . . . . . . Trap Hack Attempts . | . . . . . . . . . Triggered . | . . . . . . . . . Disarmed . | . . . . . . . . . Reprogrammed . | . . . . . . . . . Reused . | . . . . . . . . . Traps Extracted . | . . . . . . . . . Installed . | . . . . . . . . . Triggered . | . . . . . . . . . Machines | -11 -10 -10 -10 -9 -8 -7 -6 -6 ---------- Run | Yrd Mat Min Exi Min Mat Fac Fac Ext Machines Disabled . | . . . . . . . . . Max in Single Turn . | . . . . . . . . . Machines Repaired . | . . . . . . . . . Machines Dismantled . | . . . . . . . . . Machines Sabotaged . | . . . . . . . . . Overloaded Fab Kills . | . . . . . . . . . Hacking | -11 -10 -10 -10 -9 -8 -7 -6 -6 --------- Run | Yrd Mat Min Exi Min Mat Fac Fac Ext Machines Accessed 14 | . 1 . . 1 1 5 . 6 Terminals 12 | . 1 . . . 1 4 . 6 Fabricators . | . . . . . . . . . Repair Stations . | . . . . . . . . . Recycling Units 1 | . . . . . . 1 . . Scanalyzers . | . . . . . . . . . Garrison Access . | . . . . . . . . . Total Hacks 26 | . 1 . . 1 2 10 . 12 Successful 13 | . 1 . . 1 2 4 . 5 Failed 13 | . . . . . . 6 . 7 Catastrophic 1 | . . . . . . 1 . . Database Lockouts . | . . . . . . . . . Manual 2 | . . . 1 . . 1 . . Terminals 24 | . 1 . . . 2 9 . 12 Fabricators . | . . . . . . . . . Repair Stations . | . . . . . . . . . Recycling Units 1 | . . . . . . 1 . . Scanalyzers . | . . . . . . . . . Garrison Access . | . . . . . . . . . Terminal Hacks 12 | . 1 . . 1 2 3 . 5 Prototype ID Bank 2 | . 1 . . . 1 . . . Open Door 6 | . . . . 1 . . . 5 Emergency Access Points 2 | . . . . . . 2 . . Unreport Threat 1 | . . . . . . 1 . . Hauler Manifests 1 | . . . . . 1 . . . Fabricator Hacks . | . . . . . . . . . Repair Station Hacks . | . . . . . . . . . Recycling Unit Hacks 1 | . . . . . . 1 . . Recycle Component 1 | . . . . . . 1 . . Scanalyzer . | . . . . . . . . . Garrison Access Hacks . | . . . . . . . . . Unauthorized Hacks . | . . . . . . . . . Terminals . | . . . . . . . . . Fabricators . | . . . . . . . . . Repair Stations . | . . . . . . . . . Recycling Units . | . . . . . . . . . Scanalyzers . | . . . . . . . . . Garrison Access . | . . . . . . . . . Data Cores Recovered 1 | . . . . . . 1 . . Used . | . . . . . . . . . Hacking Detections 9 | . . . . . 1 3 . 5 Full Trace Events 2 | . . . . . . . . 2 Feedback Events . | . . . . . . . . . Feedback Blocked . | . . . . . . . . . Robot Schematics Acquired . | . . . . . . . . . Robots Built . | . . . . . . . . . Authchips . | . . . . . . . . . Time . | . . . . . . . . . Total Robot Build Rating . | . . . . . . . . . Part Schematics Acquired . | . . . . . . . . . Parts Built . | . . . . . . . . . Authchips . | . . . . . . . . . Time . | . . . . . . . . . Total Part Build Rating . | . . . . . . . . . Parts Repaired . | . . . . . . . . . Time . | . . . . . . . . . Parts Recycled 1 | . . . . . . 1 . . Recycled Matter . | . . . . . . . . . Retrieved Matter . | . . . . . . . . . Retrieved Components . | . . . . . . . . . Parts Scanalyzed . | . . . . . . . . . Part Schematics Acquired . | . . . . . . . . . Parts Damaged . | . . . . . . . . . Bothacking | -11 -10 -10 -10 -9 -8 -7 -6 -6 ------------ Run | Yrd Mat Min Exi Min Mat Fac Fac Ext Used RIF Installer . | . . . . . . . . . Robots Hacked . | . . . . . . . . . Non-combat . | . . . . . . . . . Combat . | . . . . . . . . . Robot Hacks Applied . | . . . . . . . . . Relay Couplers Released . | . . . . . . . . . Fabnet Peak Effective % . | . . . . . . . . . Robots Rewired . | . . . . . . . . . Allies Hacked . | . . . . . . . . . Hacks Repelled . | . . . . . . . . . Allies | -11 -10 -10 -10 -9 -8 -7 -6 -6 -------- Run | Yrd Mat Min Exi Min Mat Fac Fac Ext Total Allies 4 | . . . . . . . . 4 Largest Group 2 | . . . . . . . . 2 Highest-Rated Group 64 | . . . . . . . . 64 Highest-Rated Ally 39 | . . . . . . . . 39 Total Orders . | . . . . . . . . . Ally Attacks 13 | . . . . . . . . 13 Total Damage 154 | . . . . . . . . 154 Kills . | . . . . . . . . . Allies Corrupted . | . . . . . . . . . Allies Melted 1 | . . . . . . . . 1 Intel | -11 -10 -10 -10 -9 -8 -7 -6 -6 ------- Run | Yrd Mat Min Exi Min Mat Fac Fac Ext Robot Analysis Total . | . . . . . . . . . Derelict Logs Recovered . | . . . . . . . . . Drone Launches . | . . . . . . . . . Drone Recoveries . | . . . . . . . . . Exploration | -11 -10 -10 -10 -9 -8 -7 -6 -6 ------------- Run | Yrd Mat Min Exi Min Mat Fac Fac Ext Turns Passed 3247 | 90 590 43 163 473 80 263 187 1358 Spaces Moved 4233 | 53 288 89 423 255 188 645 419 1873 Core 19 | 7 . . . . . . . 12 Treads 334 | 46 288 . . . . . . . Legs 170 | . . . . . . . . 170 Wheels . | . . . . . . . . . Hover 415 | . . . . . . . . 415 Flight 3295 | . . 89 423 255 188 645 419 1276 Fastest Speed 24 | 50 160 37 37 37 34 28 25 24 Average Speed 46 | 145 160 37 37 37 34 29 25 41 Slowest Speed 160 | 160 160 37 37 37 34 34 28 120 Overloaded Moves 10 | . . . . . . . . 10 Propulsion Burnouts . | . . . . . . . . . Robots Hopped 11 | . . . . . . . . 11 Cave-ins Triggered . | . . . . . . . . . Exploration Rate (%) 33 | 4 45 29 81 38 24 16 8 54 Regions Visited 8 Branch Regions 4 Pre-discovered Areas 1 | . . 1 . . . . . . Known Exits Taken 6 | . . 1 1 1 1 1 1 . Unknown Exits Taken 2 | 1 1 . . . . . . . Scrap Searched . | . . . . . . . . . Spaces Dug . | . . . . . . . . . Terrain Destroyed . | . . . . . . . . . Melee . | . . . . . . . . . Projectile . | . . . . . . . . . AOE . | . . . . . . . . . Terrain Rammed . | . . . . . . . . . Walls Destroyed . | . . . . . . . . . Machines Disabled . | . . . . . . . . . Actions | -11 -10 -10 -10 -9 -8 -7 -6 -6 --------- Run | Yrd Mat Min Exi Min Mat Fac Fac Ext Total 5277 | 65 351 100 429 633 197 721 487 2294 Wait 669 | . 10 . . 368 4 42 39 206 Move 4204 | 52 287 88 422 254 187 644 418 1852 Hop 10 | . . . . . . . . 10 Pick Up 60 | 5 10 1 1 4 1 10 8 20 Fast Attach 14 | 3 . . 2 . . 2 1 6 Attach 42 | 4 1 5 1 1 2 6 4 18 Detach 6 | 1 . . 1 . . 3 . 1 Swap 14 | . 2 1 . 3 . 3 2 3 Drop 37 | . 2 5 2 3 . 10 5 10 Fire 102 | . 36 . . . 3 1 10 52 Melee 22 | . . . . . . . . 22 Ram . | . . . . . . . . . Kick 58 | . . . . . . . . 58 Crush 3 | . 3 . . . . . . . Escape Stasis 36 | . . . . . . . . 36 Rewire . | . . . . . . . . . Trap . | . . . . . . . . . Miscellaneous . | . . . . . . . . . Route ------- -11/Scrapyard -10/Materials -10/Mines (discovered 2 exits: [*Mat] / *Exi) -10/Exiles -9/Mines (discovered 2 exits: *Mat x2) -8/Materials -7/Factory -6/Factory -6/Extension History --------- Turn | Location | Event 32 | -11/Scrapyard | Discovered new exit (range 16) 91 | -11/Scrapyard | Entered Materials 303 | -10/Materials | Build established: Mutant 481 | -10/Materials | Discovered new exit (range 14) 681 | -10/Materials | Entered Mines 687 | -10/Mines | Met a Derelict bent on vengeance 693 | -10/Mines | Discovered new exit (range 5) 718 | -10/Mines | Learned location of Storage (-9) 723 | -10/Mines | Deemed a non-threat by the Exiles lab entrance 723 | -10/Mines | Discovered new exit (range 5) 724 | -10/Mines | Identified exit to Exiles 724 | -10/Mines | Entered Exiles 734 | -10/Exiles | Met 8R-AWN 740 | -10/Exiles | Met EX-HEX 759 | -10/Exiles | Met EX-DEC 771 | -10/Exiles | Visited The Gauntlet 822 | -10/Exiles | Met EX-BIN 829 | -10/Exiles | Aligned with FarCom system 830 | -10/Exiles | Given EX-Vault access code 839 | -10/Exiles | Opened EX-Vault 842 | -10/Exiles | Found Prototype Energy Cannon 844 | -10/Exiles | Identified YOLO Cannon 857 | -10/Exiles | Warned to stay clear of 0b10 Research branches 881 | -10/Exiles | Discovered new exit (range 15) 886 | -10/Exiles | Identified exit to Mines 887 | -10/Exiles | Left Exiles lab with YOLO Cannon 887 | -10/Exiles | Entered Mines 1031 | -9/Mines | Met a Derelict shopkeep closing up shop 1281 | -9/Mines | Discovered new exit (range 16) 1320 | -9/Mines | Identified exit to Materials 1325 | -9/Mines | Discovered exit to Materials (range 10) 1360 | -9/Mines | Entered Materials 1360 | -8/Materials | Evolved 4 slots: Power x1, Propulsion x1, Utility x2 1435 | -8/Materials | Discovered new exit (range 16) 1440 | -8/Materials | Identified exit to Factory 1440 | -8/Materials | Entered Factory 1440 | -7/Factory | Evolved 2 slots: Propulsion x1, Utility x1 1556 | -7/Factory | Discovered new exit (range 7) 1558 | -7/Factory | Identified exit to Factory 1703 | -7/Factory | Entered another Factory area 1703 | -6/Factory | Evolved 2 slots: Propulsion x1, Utility x1 1841 | -6/Factory | Discovered new exit (range 12) 1843 | -6/Factory | Identified exit to Extension 1890 | -6/Factory | Entered Extension 2014 | -6/Extension | Spotted B-75 Beast 2042 | -6/Extension | Build established: Scavenger-Sprinter 2141 | -6/Extension | Rescued a captive Derelict 2397 | -6/Extension | Rescued a captive Derelict 2402 | -6/Extension | Rescued a captive Derelict 2436 | -6/Extension | Rescued a captive Derelict 2506 | -6/Extension | Lost 5 parts (2p3n) 2772 | -6/Extension | Build established: Mutant 2859 | -6/Extension | Core integrity fell below 50% 2868 | -6/Extension | Lost 10 parts (2p3n3u2w) 2960 | -6/Extension | Lost 3 parts (3n) 3190 | -6/Extension | Disrupted transfer network 3239 | -6/Extension | Spotted B-75 Beast 3245 | -6/Extension | Core integrity fell below 20% 3248 | -6/Extension | Destroyed by B-75 Beast with Magnetic Acceleration Cannon Last Messages --------------- Acquired Imp. Deuterium Engine. Acquired Lyr. Light Armor Plating. U-05 Engineer builds a Door. Sneak attack on U-05 Engineer. U-05 Engineer destroyed. Sneak attack on A-15 Conveyor. Destroyed Imp. Ion Engine. ALERT: Persistent threat to transfer network, dispatching additional forces. A-15 Conveyor destroyed. Acquired Enh. Optical Array. Discarded Adv. Signal Interpreter. Acquired Enh. Optical Array. System Shield destroyed. Imp. Light Armor Plating destroyed. Connecting with Door Terminal... >>Open(Door) Sealed Heavy Doors opened. Critical hit (Meltdown: +310). [Achievement: Achiever] Map ----- +----------------------------------------------------+ | ???????????????# #?????????????????????????? | | ???????????????####### #?????????????????????????? | | ?????????????????????# #?????????????????????????? | | ?????????????????????# #?????????????????????????? | | ?????????????????????# #?????????????????????????? | | ?????????????????????# #?????????????????????????? | | ?????????????????????# #?????????????????????????? | | ?????????????????????# #?????????????????????????? | | ?????????????????????# #?????????????????????????? | | ?????????????????????# #??##?##?? #??????????????? | | ???????????????????### ### ## ### ###????????????? | | ???????????????????# " Y "" ""#????????????? | | ???????????????????# "Y " " #????????????? | | ???????????????????# R RR R #????????????? | | ??????????#####????# #????????????? | | ###########"#;######% #######??????? | | u u u ?????? | | ?????? | | ?????? | | % k t R ??????? | | BB R ???????? | | ####################% BB BB ##???????????? | | ???????????????????# BB #????????????? | | ???????????????????# % % #????????????? | | ???????????????????# #????????????? | | ???????????????????# @ #????????????? | | ???????????????????######T# #######????????????? | | ????????????????????????###?? #??????????????????? | | ?????????????????????????????????????????????????? | | | | | | | | | | | | | | | | | | | | | | | | | | | | | | | | | | | | | | | | | | | +----------------------------------------------------+ Best States ------------- Heat Dissipation 56 Energy Generation 30 Energy Capacity 505 Matter Stores 300 Matter Capacity 300 Sight Range 22 Terrain Scan Density 10 Additional Mass Support 9 Base Temperature (-) 100 Armor Coverage 150 Resistance: TH 10 Evasion (%) 65 Targeting Accuracy 5 Recoil Reduction 2 Offensive Hacking 20 Defensive Hacking 10 Item Schematics ----------------- None Robot Schematics ------------------ None Fabricated ------------ Nothing Alien Tech Used ----------------- None Achievements -------------- Achiever Can't Catch Me Challenges ------------ None Game ------ Seed XenonWeaponCasing Manual? 0 Play Time 01:38:30 Cumulative 24.0 hours Start 2024.04.07 @ 20:21:42 End 2024.04.07 @ 22:22:19 Sessions 1 Manual Loads 0 Difficulty Rogue Special Mode None Game No. 37 Rogue 37 Adventurer 0 Explorer 0 Win Type - Total 0 Types 0/0/0/0/0/0/0/0/0 Lore% 24 Gallery% 25 Achievement% 25 Wizard Run 0 Options --------- Layout 1 ASCII 0 Keyboard 0 Movement Mouse Keybinds 0 Fullscreen 1 Font 28/SmallcapsGlow Map View 55x47 Zoom Use 0% Tactical HUD 0 Map Filters NONE Filters NONE Steam 1 RUN: 135e606e-7600-42e0-80b3-c3c8464d01aa